bitfinex/quotes_SOLUSD_20240612
["timestamp","ask_amount","ask_price","bid_price","bid_amount"]
[1718203200106,0.17,159.99,159.92,45.0]
[1718203200313,0.17,160.02,159.92,45.0]
[1718203200510,258.2,160.05,159.93,0.17]
[1718203200853,258.2,160.05,160.04,2.3119]
[1718203201019,258.2,160.05,160.0,6.0411]
[1718203201212,258.2,160.05,160.04,2.3119]
[1718203201431,258.2,160.05,160.01,45.0]
[1718203205517,0.17,160.09,160.01,45.0]
[1718203205819,0.68,160.09,160.01,45.0]
[1718203207619,258.2,160.11,160.01,45.0]
[1718203208129,100.0,160.1,160.01,45.0]
[1718203208917,0.68,160.09,160.01,45.0]
[1718203209237,0.68,160.09,160.01,67.48]
[1718203209625,258.2,160.11,160.01,67.48]
[1718203211429,258.2,160.11,160.04,22.48]
[1718203211631,258.2,160.11,160.05,45.0]
[1718203212124,100.0,160.2,160.1,22.48]
[1718203212338,358.2,160.22,160.11,45.0]
[1718203212534,360.5093,160.22,160.11,45.0]
[1718203212838,100.0,160.2,160.11,45.0]
[1718203213229,2.3094,160.21,160.11,45.0]
[1718203213541,100.0,160.2,160.13,22.48]
[1718203214224,358.2,160.22,160.13,22.48]
[1718203214427,360.5093,160.22,160.13,22.48]
[1718203214630,358.2,160.22,160.14,15.9595]
[1718203214846,258.2,160.22,160.15,6.5017]
[1718203215154,258.2,160.22,160.16,45.0]
[1718203215653,100.0,160.3,160.16,26.18]
[1718203215823,100.0,160.3,160.17,65.0]
[1718203216619,100.0,160.28,160.17,65.0]
[1718203217024,100.0,160.26,160.17,65.0]
[1718203217246,102.3088,160.26,160.17,45.0]
[1718203217450,100.0,160.26,160.17,45.0]
[1718203218243,0.17,160.23,160.17,45.0]
[1718203218418,0.17,160.23,160.15,6.5017]
[1718203218419,0.68,160.23,160.15,6.5017]
[1718203218616,0.17,160.21,160.14,15.9595]
[1718203218824,0.51,160.21,160.14,15.9595]
[1718203219124,0.17,160.19,160.14,15.9595]
[1718203219533,0.51,160.19,160.14,15.9595]
[1718203219724,0.17,160.18,160.14,15.9595]
[1718203220215,0.17,160.2,160.14,15.9595]
[1718203220627,0.17,160.2,160.15,45.0]
[1718203221237,100.17,160.24,160.15,45.0]
[1718203221431,100.0,160.24,160.15,45.0]
[1718203221922,100.0,160.27,160.15,45.0]
[1718203222118,100.0,160.27,160.16,20.0]
[1718203222352,100.0,160.27,160.17,45.0]
[1718203222722,100.0,160.32,160.17,45.0]
[1718203222923,100.0,160.32,160.18,6.0547]
[1718203222924,102.3079,160.32,160.18,6.0547]
[1718203223152,2.308,160.31,160.19,45.0]
[1718203223326,100.0,160.3,160.19,45.0]
[1718203223531,102.3084,160.28,160.19,45.0]
[1718203224073,100.0,160.26,160.19,45.0]
[1718203224722,0.34,160.25,160.19,45.0]
[1718203225122,0.17,160.25,160.19,45.0]
[1718203225359,100.0,160.3,160.19,45.0]
[1718203225975,102.3081,160.3,160.19,45.0]
[1718203226170,100.0,160.28,160.19,45.0]
[1718203226524,0.34,160.27,160.19,45.0]
[1718203226956,0.17,160.23,160.18,6.0547]
[1718203227125,0.34,160.23,160.18,6.0547]
[1718203227334,0.51,160.23,160.18,6.0547]
[1718203227534,0.51,160.23,160.21,2.3094]
[1718203227749,0.17,160.23,160.22,2.3093]
[1718203227944,102.3085,160.28,160.23,2.3091]
[1718203228270,4.6164,160.3,160.18,6.0547]
[1718203228271,0.17,160.23,160.21,2.3093]
[1718203228424,0.51,160.23,160.18,8.3645]
[1718203228628,0.17,160.2,160.14,22.5441]
[1718203228933,0.17,160.18,160.14,22.5441]
[1718203229128,0.68,160.18,160.14,22.5441]
[1718203229326,0.68,160.18,160.14,24.8545]
[1718203229853,0.68,160.18,160.15,2.3103]
[1718203230159,0.68,160.18,160.14,22.5441]
[1718203230526,0.17,160.16,160.13,2.3105]
[1718203230750,0.17,160.16,160.14,2.3104]
[1718203230950,0.51,160.16,160.14,2.3104]
[1718203231331,0.17,160.16,160.15,2.3103]
[1718203231527,0.17,160.17,160.16,2.3101]
[1718203231927,0.17,160.16,160.1,22.6676]
[1718203232130,0.17,160.16,160.14,2.3104]
[1718203232525,0.34,160.17,160.1,22.6676]
[1718203232729,0.17,160.17,160.16,2.3101]
[1718203233022,0.17,160.17,160.15,2.3102]
[1718203233228,0.17,160.16,160.13,2.3105]
[1718203233428,0.34,160.16,160.14,2.3104]
[1718203233646,0.17,160.12,160.05,48.0711]
[1718203233954,0.34,160.15,160.05,21.8911]
[1718203234138,0.34,160.15,160.13,2.3105]
[1718203234460,0.51,160.15,160.05,21.8911]
[1718203234651,100.34,160.14,160.11,2.3108]
[1718203234957,0.17,160.13,160.1,2.3109]
[1718203235129,0.34,160.13,160.1,2.3109]
[1718203235324,0.34,160.13,160.11,2.3109]
[1718203235529,0.34,160.12,160.09,2.3111]
[1718203235729,0.17,160.11,160.09,2.3111]
[1718203235928,0.34,160.11,160.08,2.3112]
[1718203236146,0.34,160.11,160.02,2.500148]
[1718203236147,0.17,160.09,160.02,2.500148]
[1718203236530,0.34,160.11,160.01,6.0144]
[1718203236747,0.17,160.11,160.1,2.311]
[1718203237541,100.0,160.14,160.02,20.0]
[1718203237740,0.34,160.13,160.1,2.3109]
[1718203238149,0.34,160.13,160.11,2.3109]
[1718203238753,0.17,160.12,160.11,2.3109]
[1718203238930,0.17,160.12,160.1,2.3109]
[1718203239130,0.34,160.12,160.09,2.3111]
[1718203240565,0.34,160.11,160.09,2.3111]
[1718203240735,0.17,160.1,160.09,2.3111]
[1718203241559,0.17,160.09,160.07,2.3114]
[1718203242439,0.34,160.09,160.01,32.1944]
[1718203242754,0.17,160.08,160.07,2.3114]
[1718203242948,0.17,160.08,160.06,2.3115]
[1718203243345,0.17,160.07,160.01,6.0144]
[1718203243552,0.34,160.08,160.05,2.3116]
[1718203244233,0.34,160.08,160.06,2.3116]
[1718203245136,0.17,160.05,160.03,2.312]
[1718203245341,0.17,160.05,159.97,6.1487]
[1718203245342,0.17,160.03,160.02,2.312]
[1718203245560,0.34,160.05,160.04,2.3119]
[1718203245867,0.51,160.05,160.04,2.3119]
[1718203247658,0.68,160.05,160.03,2.312]
[1718203248155,100.34,160.04,160.02,2.3121]
[1718203248339,0.51,160.03,160.02,2.3121]
[1718203248540,0.17,160.02,160.01,2.3123]
[1718203249060,0.34,160.02,160.01,2.3123]
[1718203249254,0.34,160.02,159.99,4.6252]
[1718203249255,100.68,160.02,159.97,6.1487]
[1718203249466,0.34,160.01,159.97,6.1487]
[1718203249763,0.34,160.01,160.0,2.3125]
[1718203249764,0.51,160.01,160.0,2.3125]
[1718203249968,0.17,160.01,160.0,2.3125]
[1718203250262,0.17,160.01,160.0,6.9375]
[1718203250971,0.34,160.01,159.99,2.3126]
[1718203251339,100.51,160.0,159.98,2.3127]
[1718203251545,0.17,159.99,159.98,2.3127]
[1718203253759,0.17,159.99,159.98,6.9382]
[1718203253958,0.17,160.01,160.0,2.3124]
[1718203254154,0.34,160.01,160.0,2.3124]
[1718203254361,0.68,160.01,159.99,2.3125]
[1718203254573,0.51,160.01,159.99,2.3125]
[1718203254771,0.51,160.01,159.98,2.3126]
[1718203254979,0.51,160.01,159.98,2.3127]
[1718203254980,100.34,160.0,159.98,2.3127]
[1718203255266,0.34,159.99,159.93,6.426]
[1718203255485,0.34,159.99,159.97,2.3128]
[1718203256890,0.34,159.99,159.98,2.3127]
[1718203257097,0.68,159.99,159.98,2.3127]
[1718203257465,0.17,159.99,159.98,2.3127]
[1718203257663,0.17,160.01,160.0,2.3125]
[1718203257881,0.34,160.01,160.0,2.3125]
[1718203258692,100.0,160.04,160.02,2.3121]
[1718203258890,100.0,160.04,160.01,2.3123]
[1718203259674,100.0,160.06,160.02,2.3121]
[1718203259867,102.3116,160.06,159.99,4.6251]
[1718203260076,100.0,160.04,159.94,22.5]
[1718203260277,100.0,160.04,160.01,2.3122]
[1718203260991,100.0,160.04,159.99,2.3125]
[1718203261175,4.6233,160.06,159.98,2.3127]
[1718203261176,100.0,160.02,159.98,2.3127]
[1718203261367,100.0,160.02,159.99,2.3126]
[1718203261565,100.0,160.08,159.96,28.9423]
[1718203261883,100.0,160.08,160.04,2.3119]
[1718203262206,100.0,160.08,160.05,2.3117]
[1718203262360,100.0,160.08,159.99,22.5]
[1718203262361,100.0,160.1,160.0,16.0413]
[1718203262562,100.0,160.1,160.06,2.3115]
[1718203262870,133.94350277,160.13,160.04,2.3118]
[1718203262871,100.0,160.08,160.04,2.3118]
[1718203263168,100.0,160.06,160.0,16.0413]
[1718203263393,100.0,160.06,160.0,20.6662]
[1718203263889,100.0,160.06,160.03,2.312]
[1718203264196,0.51,160.05,160.0,16.0413]
[1718203264402,0.17,160.01,159.96,21.6959]
[1718203264564,2.8223,160.01,159.97,2.3128]
[1718203264769,0.17,160.0,159.96,21.6959]
[1718203264992,0.34,160.0,159.96,21.6959]
[1718203265300,0.17,160.0,159.99,2.3126]
[1718203265596,0.17,160.01,160.0,2.3124]
[1718203266505,0.51,160.01,159.96,26.322]
[1718203266716,0.68,160.01,159.98,2.3127]
[1718203267592,0.17,159.99,159.92,22.3642]
[1718203267795,0.68,159.99,159.96,2.313]
[1718203268389,0.68,159.99,159.94,4.6266]
[1718203268592,0.68,159.99,159.96,2.3129]
[1718203269298,0.68,159.99,159.97,2.3129]
[1718203269608,100.17,159.98,159.95,2.313]
[1718203269774,0.68,159.97,159.93,2.3134]
[1718203270086,0.68,159.97,159.94,2.3133]
[1718203270273,0.68,159.97,159.92,26.9913]
[1718203270274,0.68,159.97,159.93,2.3134]
[1718203270487,0.68,159.97,159.92,22.3642]
[1718203270691,0.68,159.97,159.89,22.5]
[1718203270692,0.17,159.95,159.93,2.3134]
[1718203270893,0.68,159.95,159.92,2.3136]
[1718203271194,0.68,159.95,159.88,21.3245]
[1718203271404,0.68,159.95,159.94,2.3133]
[1718203271714,0.17,159.95,159.93,2.3134]
[1718203271918,0.17,159.97,159.96,2.313]
[1718203272213,0.68,159.97,159.94,2.3133]
[1718203272400,0.68,159.97,159.94,2.3132]
[1718203272711,0.68,159.97,159.95,2.3132]
[1718203273219,0.17,159.97,159.95,2.3132]
[1718203273391,0.68,159.97,159.94,2.3132]
[1718203274204,0.68,159.97,159.95,2.3132]
[1718203275289,0.17,159.97,159.96,2.313]
[1718203275902,102.3123,160.02,159.95,4.6264]
[1718203276107,100.0,160.04,160.0,2.3124]
[1718203276489,100.0,160.04,159.94,22.5]
[1718203276691,100.0,160.06,159.96,6.0328]
[1718203276911,102.3114,160.08,160.03,2.3119]
[1718203277205,100.0,160.08,160.04,2.3118]
[1718203277399,100.0,160.08,160.05,2.3117]
[1718203277723,100.0,160.08,160.03,4.6239]
[1718203277901,100.0,160.08,160.05,2.3117]
[1718203278423,102.3113,160.08,160.03,2.312]
[1718203278735,100.0,160.12,160.07,2.3113]
[1718203279026,102.3108,160.12,160.06,2.3115]
[1718203279234,100.0,160.1,160.06,2.3115]
[1718203279394,100.0,160.12,160.07,2.3113]
[1718203279595,100.0,160.14,160.08,2.3112]
[1718203279798,100.0,160.12,160.07,2.3114]
[1718203280314,100.0,160.14,160.05,4.6234]
[1718203280515,100.0,160.12,160.08,2.3113]
[1718203280821,100.0,160.12,160.05,4.6234]
[1718203280822,100.0,160.14,160.09,2.311]
[1718203281003,100.0,160.14,160.04,6.1828]
[1718203281004,100.0,160.14,160.1,2.311]
[1718203281325,102.3105,160.14,160.08,2.3112]
[1718203281619,100.0,160.1,160.06,2.3115]
[1718203281924,100.0,160.1,160.04,6.1828]
[1718203282090,102.3113,160.08,160.03,2.3119]
[1718203282291,2.3115,160.07,159.99,23.1507]
[1718203282606,0.17,160.06,160.02,2.3121]
[1718203283109,0.34,160.07,160.03,2.312]
[1718203283529,0.34,160.07,160.0,4.6249]
[1718203283530,0.34,160.07,159.99,23.1507]
[1718203283827,0.34,160.07,160.04,2.3118]
[1718203284026,0.34,160.07,159.99,23.1507]
[1718203284233,0.34,160.07,160.02,4.6243]
[1718203285034,0.34,160.07,160.05,2.3117]
[1718203285541,100.0,160.12,159.99,23.1507]
[1718203285750,100.0,160.14,160.1,2.311]
[1718203286356,100.0,160.12,160.09,2.3111]
[1718203286641,100.0,160.14,160.1,2.311]
[1718203287142,100.0,160.14,160.1,2.3109]
[1718203288053,0.34,160.13,160.1,2.3109]
[1718203288223,0.51,160.13,160.1,2.3109]
[1718203288935,0.34,160.12,160.1,2.3109]
[1718203289128,0.34,160.13,160.1,2.3109]
[1718203289330,0.17,160.12,160.1,2.3109]
[1718203290637,0.17,160.12,160.07,22.8908]
[1718203290851,0.17,160.12,160.09,2.311]
[1718203291146,0.17,160.11,160.07,22.8908]
[1718203291443,0.17,160.11,160.1,2.311]
[1718203291749,0.17,160.11,160.09,2.3111]
[1718203292130,0.17,160.11,160.08,2.3112]
[1718203292848,0.17,160.09,160.06,2.3115]
[1718203293048,0.68,160.09,160.05,2.3116]
[1718203293238,2.9912,160.09,160.04,2.3118]
[1718203293629,0.68,160.09,160.05,2.3117]
[1718203293830,0.17,160.07,160.04,2.3118]
[1718203294036,0.17,160.07,160.03,22.93]
[1718203294037,0.68,160.07,160.03,22.93]
[1718203294335,0.68,160.07,160.04,2.3118]
[1718203294527,0.68,160.07,160.03,22.93]
[1718203294857,0.68,160.07,160.05,2.3116]
[1718203295027,100.0,160.1,160.06,2.3116]
[1718203295230,100.0,160.08,160.06,2.3115]
[1718203295425,0.17,160.07,160.05,2.3117]
[1718203295736,0.17,160.07,160.04,2.3118]
[1718203295938,0.34,160.07,160.03,22.93]
[1718203296156,0.34,160.07,160.05,2.3117]
[1718203296362,0.17,160.07,160.06,2.3116]
[1718203296529,0.17,160.07,160.05,2.3117]
[1718203296733,0.17,160.07,160.06,2.3116]
[1718203298958,0.17,160.07,160.05,2.3116]
[1718203299553,100.0,160.06,160.02,2.3121]
[1718203299756,0.68,160.05,160.03,2.3119]
[1718203300063,2.9918,160.05,159.97,22.2715]
[1718203300360,100.0,160.04,159.97,22.2715]
[1718203300565,0.51,160.03,159.97,22.2715]
[1718203300876,0.51,160.03,159.99,2.3125]
[1718203301672,0.51,160.03,159.97,26.8972]
[1718203302168,0.17,160.01,160.0,2.3124]
[1718203302676,100.0,160.07,159.97,22.2715]
[1718203302677,100.0,160.08,159.97,22.2715]
[1718203302844,0.68,160.07,160.06,2.3116]
[1718203303044,0.17,160.07,160.06,2.3116]
[1718203303359,102.3111,160.1,160.05,2.3117]
[1718203303562,100.0,160.04,159.97,22.2715]
[1718203303770,100.0,160.04,160.02,2.3121]
[1718203303960,100.0,160.04,159.99,4.6252]
[1718203304288,100.0,160.04,159.97,22.2715]
[1718203304289,100.0,160.04,159.97,26.8972]
[1718203304480,0.51,160.03,160.02,2.3122]
[1718203306365,0.51,160.03,160.01,2.3122]
[1718203307676,100.0,160.08,159.97,22.2715]
[1718203307976,0.68,160.07,160.05,2.3116]
[1718203308191,100.0,160.1,160.06,2.3116]
[1718203308762,100.0,160.1,159.97,22.2715]
[1718203309089,158.05322234,160.12,159.98,0.51]
[1718203309277,100.0,160.1,160.07,2.3114]
[1718203311089,0.17,160.09,160.07,2.3114]
[1718203311260,0.34,160.09,159.97,26.895]
[1718203311581,0.17,160.07,160.04,2.3117]
[1718203311887,0.17,160.07,160.02,4.6243]
[1718203312091,0.34,160.07,160.04,2.3118]
[1718203312987,0.34,160.07,160.05,2.3117]
[1718203313300,0.34,160.07,160.04,2.3118]
[1718203314093,0.34,160.07,160.05,2.3117]
[1718203314263,0.34,160.07,160.04,2.3118]
[1718203314598,0.34,160.07,159.97,26.895]
[1718203314896,0.34,160.07,160.04,2.3118]
[1718203315762,0.17,160.04,159.97,26.895]
[1718203316095,0.68,160.04,160.01,2.3122]
[1718203316558,0.68,160.04,159.99,4.6252]
[1718203316761,0.68,160.04,160.02,2.3121]
[1718203317464,0.68,160.04,160.0,4.6249]
[1718203318784,0.68,160.04,160.03,2.312]
[1718203320063,0.68,160.04,160.01,4.6246]
[1718203320263,0.68,160.04,160.02,2.3122]
[1718203320483,0.68,160.04,160.03,2.312]
[1718203320676,0.17,160.04,160.03,2.312]
[1718203321063,100.0,160.07,160.03,2.312]
[1718203321288,102.3114,160.07,160.03,2.312]
[1718203321589,202.77610963,160.1,160.02,2.3121]
[1718203321590,100.0,160.05,160.02,2.3121]
[1718203322357,100.0,160.03,159.94,16.2726]
[1718203322589,0.51,160.02,159.94,16.2726]
[1718203322790,0.17,160.02,160.01,2.3123]
[1718203323769,0.51,160.02,159.94,16.2726]
[1718203325591,0.17,160.02,159.94,16.2726]
[1718203325973,106.2286,160.18,160.01,0.17]
[1718203326275,100.0,160.21,160.05,0.17]
[1718203326607,258.2,160.22,160.09,0.17]
[1718203326776,258.2,160.22,160.09,20.51]
[1718203326976,258.2,160.22,160.09,36.4229]
[1718203327396,258.2,160.22,160.11,22.45]
[1718203328279,100.0,160.21,160.11,22.45]
[1718203329005,258.2,160.22,160.11,22.45]
[1718203329173,258.2,160.22,160.12,6.2377]
[1718203329697,100.0,160.25,160.12,6.2377]
[1718203330196,100.0,160.25,160.13,20.0]
[1718203331110,102.3086,160.27,160.13,20.0]
[1718203331607,2.3085,160.28,160.15,16.5776]
[1718203331797,102.3083,160.29,160.15,16.5776]
[1718203333414,102.3083,160.29,160.16,0.17]
[1718203333581,2.3084,160.28,160.17,6.1318]
[1718203333919,102.82812869,160.3,160.17,6.1318]
[1718203333920,102.3086,160.27,160.17,6.1318]
[1718203334215,202.82812869,160.3,160.17,6.1318]
[1718203334216,102.309,160.25,160.17,6.1318]
[1718203334392,100.0,160.23,160.17,6.1318]
[1718203334593,0.68,160.22,160.17,6.1318]
[1718203335605,0.17,160.22,160.17,6.1318]
[1718203335906,0.17,160.27,160.18,1.24856038]
[1718203336210,2.9885,160.28,160.18,1.24856038]
[1718203336408,0.17,160.26,160.18,1.24856038]
[1718203336703,2.9887,160.26,160.17,6.1318]
[1718203336922,0.17,160.24,160.17,6.1318]
[1718203337221,0.68,160.24,160.17,6.1318]
[1718203338890,0.17,160.24,160.17,6.1318]
[1718203339606,0.68,160.24,160.17,6.1318]
[1718203339807,0.17,160.24,160.18,0.78620882]
[1718203340122,0.17,160.27,160.18,0.78620882]
[1718203340294,0.68,160.27,160.18,0.78620882]
[1718203340494,0.68,160.27,160.18,1.24834774]
[1718203341182,2.3083,160.29,160.18,1.24834774]
[1718203342017,2.3082,160.3,160.18,1.24834774]
[1718203342214,102.3083,160.29,160.17,6.1318]
[1718203342415,0.17,160.24,160.17,6.1318]
[1718203342608,0.17,160.23,160.17,6.1318]
[1718203342911,0.17,160.24,160.17,6.1318]
[1718203343311,0.68,160.25,160.17,6.1318]
[1718203347137,0.17,160.23,160.17,6.1318]
[1718203347297,0.68,160.23,160.17,6.1318]
[1718203349126,100.0,160.26,160.17,6.1318]
[1718203349794,100.0,160.26,160.09,15.9129]
[1718203349795,358.2,160.34,160.2,23.1507]
[1718203350007,358.2,160.34,160.21,20.0]
[1718203351299,100.0,160.32,160.21,20.0]
[1718203352019,360.5076,160.34,160.21,20.0]
[1718203352427,358.2,160.34,160.21,20.0]
[1718203353317,100.0,160.32,160.21,20.0]
[1718203354193,0.17,160.33,160.21,20.0]
[1718203354390,0.68,160.33,160.21,20.0]
[1718203355226,0.17,160.31,160.21,20.0]
[1718203355408,0.68,160.31,160.21,20.0]
[1718203356601,100.0,160.3,160.2,23.1507]
[1718203356839,0.51,160.29,160.2,23.1507]
[1718203357030,0.17,160.26,160.2,23.1507]
[1718203357331,102.4788,160.26,160.2,23.1507]
[1718203357509,0.17,160.24,160.2,23.1507]
[1718203357706,0.17,160.27,160.2,23.1507]
[1718203357909,0.68,160.27,160.2,23.1507]
[1718203358218,102.9886,160.27,160.2,23.1507]
[1718203358522,0.68,160.27,160.2,23.1507]
[1718203359108,0.34,160.27,160.2,23.1507]
[1718203359297,131.0242,160.33,160.2,23.1507]
[1718203359621,100.0,160.33,160.2,23.1507]
[1718203360030,102.3078,160.33,160.2,23.1507]
[1718203360324,100.0,160.3,160.2,23.1507]
[1718203361512,0.68,160.29,160.2,23.1507]
[1718203361719,0.17,160.27,160.2,23.1507]
[1718203362026,0.51,160.27,160.2,23.1507]
[1718203362211,0.68,160.27,160.2,23.1507]
[1718203362633,0.17,160.25,160.2,23.1507]
[1718203362829,0.68,160.25,160.2,23.1507]
[1718203363337,100.0,160.3,160.2,23.1507]
[1718203363631,129.12723505,160.32,160.2,23.1507]
[1718203363811,100.0,160.33,160.2,23.1507]
[1718203364213,100.0,160.33,160.22,15.7726]
[1718203365025,102.3077,160.33,160.22,15.7726]
[1718203365841,0.17,160.3,160.22,15.7726]
[1718203366139,0.68,160.3,160.22,15.7726]
[1718203367016,0.17,160.28,160.22,15.7726]
[1718203370431,0.51,160.29,160.22,15.7726]
[1718203371125,360.5077,160.34,160.23,6.544]
[1718203371350,358.2,160.34,160.23,6.544]
[1718203372957,100.0,160.34,160.23,6.544]
[1718203373644,0.68,160.33,160.23,6.544]
[1718203373852,0.68,160.33,160.23,28.974]
[1718203378342,100.0,160.36,160.24,15.1727]
[1718203378667,100.0,160.36,160.27,15.1727]
[1718203379748,0.34,160.35,160.27,15.1727]
[1718203380150,0.17,160.34,160.27,15.1727]
[1718203381043,0.17,160.35,160.27,15.1727]
[1718203381246,0.34,160.35,160.27,15.1727]
[1718203381563,0.17,160.35,160.27,15.1727]
[1718203382859,0.17,160.35,160.28,1.2207242]
[1718203384376,0.68,160.35,160.27,15.1727]
[1718203384552,0.17,160.35,160.27,15.1727]
[1718203384754,0.17,160.35,160.28,0.63500943]
[1718203386887,0.17,160.35,160.28,1.00052347]
[1718203389460,0.17,160.37,160.28,1.00052347]
[1718203389664,0.68,160.37,160.28,1.00052347]
[1718203389848,0.34,160.37,160.28,1.00052347]
[1718203390048,0.17,160.37,160.28,1.00052347]
[1718203391397,0.17,160.37,160.27,15.1727]
[1718203392167,0.34,160.37,160.27,15.1727]
[1718203393588,0.34,160.36,160.27,15.1727]
[1718203393784,0.17,160.35,160.27,15.1727]
[1718203393990,0.17,160.34,160.27,15.1727]
[1718203394185,0.17,160.34,160.27,15.5446628]
[1718203394397,0.51,160.34,160.27,15.5446628]
[1718203394570,0.17,160.33,160.27,15.5446628]
[1718203395592,0.17,160.33,160.27,15.1727]
[1718203395779,0.51,160.33,160.27,15.1727]
[1718203396087,100.0,160.38,160.28,1.24726126]
[1718203396398,0.34,160.37,160.28,0.59878651]
[1718203397671,0.17,160.36,160.27,15.1727]
[1718203398593,0.34,160.36,160.27,15.1727]
[1718203398893,0.17,160.35,160.27,15.1727]
[1718203399373,100.0,160.38,160.27,15.1727]
[1718203399890,0.17,160.37,160.27,15.1727]
[1718203400096,0.34,160.37,160.27,15.1727]
[1718203400390,0.17,160.37,160.28,1.24619813]
[1718203400573,0.17,160.4,160.3,16.547]
[1718203400889,0.34,160.4,160.31,1.24596491]
[1718203401078,0.17,160.38,160.31,1.24596491]
[1718203401278,0.34,160.38,160.31,1.24596491]
[1718203401589,0.34,160.38,160.3,16.547]
[1718203401590,0.17,160.37,160.3,16.547]
[1718203402992,0.17,160.37,160.33,7.47]
[1718203404198,100.0,160.43,160.34,7.47]
[1718203404408,100.0,160.43,160.35,7.47]
[1718203404409,102.3063,160.43,160.35,7.47]
[1718203404700,107.47,160.41,160.35,7.47]
[1718203405084,7.47,160.41,160.35,7.47]
[1718203405594,7.81,160.4,160.35,7.47]
[1718203405815,7.81,160.4,160.3,16.547]
[1718203405816,0.17,160.36,160.3,16.547]
[1718203406003,8.15,160.36,160.3,24.017]
[1718203406384,0.17,160.36,160.33,7.47]
[1718203406583,7.47,160.38,160.33,7.47]
[1718203406584,0.17,160.37,160.33,7.47]
[1718203406801,0.51,160.38,160.33,7.47]
[1718203407421,7.98,160.38,160.32,7.47]
[1718203407712,7.47,160.37,160.31,7.47]
[1718203408011,0.17,160.36,160.32,7.47]
[1718203408809,0.17,160.37,160.32,7.47]
[1718203410589,0.17,160.37,160.33,7.47]
[1718203410893,7.47,160.36,160.3,16.547]
[1718203411093,0.51,160.35,160.3,24.017]
[1718203411607,0.34,160.37,160.31,7.47]
[1718203411914,0.17,160.36,160.31,7.47]
[1718203412109,0.17,160.35,160.3,24.017]
[1718203412321,0.34,160.35,160.3,24.017]
[1718203412612,0.17,160.34,160.3,16.547]
[1718203413722,0.17,160.36,160.32,7.47]
[1718203415509,0.34,160.37,160.32,7.47]
[1718203419201,0.34,160.37,160.33,7.47]
[1718203420434,7.81,160.37,160.32,7.47]
[1718203421126,0.17,160.35,160.31,7.47]
[1718203421352,0.34,160.35,160.31,7.47]
[1718203421753,0.34,160.35,160.3,24.017]
[1718203422428,0.34,160.35,160.3,16.547]